[Event "Early-Titled-Tuesday-Blitz-February-27-2024"]
[Site "Chess.com"]
[Date "2024.02.27"]
[Round "5"]
[White "IsaqueGoncalvesSanto"]
[Black "AniJak"]
[Result "0-1"]
[WhiteElo "1760"]
[BlackElo "2369"]
[TimeControl "180+1"]
[EndTime "8:54:39 PST"]
[Termination "AniJak won by checkmate"]

1. d4 {[%clk 0:02:56.5]} 1... f5 {[%clk 0:02:56.8]} 2. Qd3 {[%clk 0:02:55.7]}
2... d5 {[%clk 0:02:55.5]} 3. g4 {[%clk 0:02:55.8]} 3... g6 {[%clk 0:02:52.7]}
4. h4 {[%clk 0:02:55.1]} 4... fxg4 {[%clk 0:02:50.9]} 5. h5 {[%clk 0:02:54.5]}
5... Bf5 {[%clk 0:02:47.2]} 6. Qb5+ {[%clk 0:02:54]} 6... Nd7 {[%clk 0:02:44.3]}
7. Qxb7 {[%clk 0:02:50.7]} 7... Ngf6 {[%clk 0:02:28.9]} 8. hxg6 {[%clk
0:02:49.6]} 8... Bxg6 {[%clk 0:02:28]} 9. Bg2 {[%clk 0:02:48.8]} 9... Nb6 {[%clk
0:02:24.6]} 10. Bf4 {[%clk 0:02:33.9]} 10... Bxc2 {[%clk 0:02:05.5]} 11. Na3
{[%clk 0:02:28.5]} 11... e5 {[%clk 0:01:57.5]} 12. Qc6+ {[%clk 0:01:55.1]} 12...
Qd7 {[%clk 0:01:41.5]} 13. Qxf6 {[%clk 0:01:46]} 13... Bg7 {[%clk 0:01:29.2]}
14. Qg5 {[%clk 0:01:26.7]} 14... h6 {[%clk 0:01:25.8]} 15. Qh5+ {[%clk
0:01:13.7]} 15... Qf7 {[%clk 0:01:25.8]} 16. Qxf7+ {[%clk 0:01:13]} 16... Kxf7
{[%clk 0:01:26.7]} 17. dxe5 {[%clk 0:01:00.5]} 17... Bg6 {[%clk 0:01:23]} 18.
Rc1 {[%clk 0:00:59.7]} 18... Rac8 {[%clk 0:01:14.9]} 19. Nb5 {[%clk 0:00:55.7]}
19... Nc4 {[%clk 0:01:11.2]} 20. b3 {[%clk 0:00:50.2]} 20... Nxe5 {[%clk
0:01:10.4]} 21. Bxd5+ {[%clk 0:00:49]} 21... Ke7 {[%clk 0:01:07]} 22. Nxa7
{[%clk 0:00:41.6]} 22... Rcd8 {[%clk 0:01:03.8]} 23. e4 {[%clk 0:00:33.5]} 23...
Nd3+ {[%clk 0:01:02.4]} 24. Kd1 {[%clk 0:00:29.1]} 24... Nxf4 {[%clk 0:00:44.7]}
25. Rxc7+ {[%clk 0:00:27.5]} 25... Kf6 {[%clk 0:00:42.2]} 26. Rc6+ {[%clk
0:00:19.9]} 26... Kg5 {[%clk 0:00:37.4]} 27. Kc2 {[%clk 0:00:14.4]} 27... Rxd5
{[%clk 0:00:36.5]} 28. Rxg6+ {[%clk 0:00:14]} 28... Kxg6 {[%clk 0:00:28.7]} 29.
exd5 {[%clk 0:00:14.5]} 29... Nxd5 {[%clk 0:00:28.7]} 30. Ne2 {[%clk 0:00:13.1]}
30... Ra8 {[%clk 0:00:25.5]} 31. Nb5 {[%clk 0:00:12.7]} 31... Rxa2+ {[%clk
0:00:23.5]} 32. Kd3 {[%clk 0:00:13.3]} 32... Nb4+ {[%clk 0:00:20.4]} 33. Kc4
{[%clk 0:00:13.3]} 33... Rxe2 {[%clk 0:00:17.2]} 34. Kxb4 {[%clk 0:00:13.3]}
34... Rxf2 {[%clk 0:00:17.9]} 35. Rd1 {[%clk 0:00:12.8]} 35... g3 {[%clk
0:00:17.4]} 36. Rg1 {[%clk 0:00:11.3]} 36... g2 {[%clk 0:00:17.4]} 37. Kc4
{[%clk 0:00:10.3]} 37... h5 {[%clk 0:00:17.1]} 38. Nd4 {[%clk 0:00:10.7]} 38...
Bxd4 {[%clk 0:00:11.7]} 39. Kxd4 {[%clk 0:00:10.8]} 39... h4 {[%clk 0:00:12.1]}
40. Ke3 {[%clk 0:00:11.3]} 40... Rb2 {[%clk 0:00:11.7]} 41. Kf3 {[%clk
0:00:11.8]} 41... h3 {[%clk 0:00:11.7]} 42. Kg3 {[%clk 0:00:11.3]} 42... Rxb3+
{[%clk 0:00:11.8]} 43. Kh2 {[%clk 0:00:11.6]} 43... Kg5 {[%clk 0:00:11.9]} 44.
Re1 {[%clk 0:00:11.5]} 44... Rf3 {[%clk 0:00:09.7]} 45. Re5+ {[%clk 0:00:11.4]}
45... Rf5 {[%clk 0:00:08.1]} 46. Re1 {[%clk 0:00:11.6]} 46... Rf1 {[%clk
0:00:06.8]} 47. Rxf1 {[%clk 0:00:10.9]} 47... gxf1=Q {[%clk 0:00:05.5]} 48. Kg3
{[%clk 0:00:10.3]} 48... Qg2# {[%clk 0:00:04.6]} 0-1

[Event "Early-Titled-Tuesday-Blitz-February-27-2024"]
[Site "Chess.com"]
[Date "2024.02.27"]
[Round "5"]
[White "HanSchut"]
[Black "annacramling"]
[Result "1-0"]
[WhiteElo "2302"]
[BlackElo "2104"]
[TimeControl "180+1"]
[EndTime "8:54:39 PST"]
[Termination "HanSchut won on time"]

1. e4 {[%clk 0:03:00.9]} 1... c5 {[%clk 0:02:30.3]} 2. Nf3 {[%clk 0:03:00.1]}
2... e6 {[%clk 0:02:26.9]} 3. c4 {[%clk 0:03:00.3]} 3... Nc6 {[%clk 0:02:22]} 4.
Nc3 {[%clk 0:03:00.4]} 4... Nd4 {[%clk 0:02:18.3]} 5. Be2 {[%clk 0:02:59.9]}
5... d6 {[%clk 0:02:04.4]} 6. O-O {[%clk 0:02:58.2]} 6... Nf6 {[%clk 0:02:03.5]}
7. d3 {[%clk 0:02:58.3]} 7... Be7 {[%clk 0:02:03.4]} 8. Be3 {[%clk 0:02:57.8]}
8... e5 {[%clk 0:02:01.3]} 9. Bxd4 {[%clk 0:02:50.3]} 9... cxd4 {[%clk
0:02:02.2]} 10. Nd5 {[%clk 0:02:50.9]} 10... O-O {[%clk 0:01:59.5]} 11. h3
{[%clk 0:02:49]} 11... Be6 {[%clk 0:01:53.1]} 12. Nd2 {[%clk 0:02:35.3]} 12...
Rc8 {[%clk 0:01:39.7]} 13. f4 {[%clk 0:02:34.4]} 13... Bxd5 {[%clk 0:01:35.5]}
14. cxd5 {[%clk 0:02:22.6]} 14... exf4 {[%clk 0:01:23]} 15. Rxf4 {[%clk
0:02:19.1]} 15... Nd7 {[%clk 0:01:23.2]} 16. Bg4 {[%clk 0:02:05.7]} 16... Bg5
{[%clk 0:01:16.9]} 17. Rf1 {[%clk 0:02:00.3]} 17... Rc7 {[%clk 0:01:06.2]} 18.
Bxd7 {[%clk 0:01:57.4]} 18... Qxd7 {[%clk 0:01:01.7]} 19. Kh1 {[%clk 0:01:57.6]}
19... Rfc8 {[%clk 0:00:58.7]} 20. Nc4 {[%clk 0:01:44.9]} 20... b5 {[%clk
0:00:57]} 21. Na5 {[%clk 0:01:40.8]} 21... Rc1 {[%clk 0:00:38.1]} 22. Rxc1
{[%clk 0:01:39.8]} 22... Rxc1 {[%clk 0:00:39]} 23. Qf3 {[%clk 0:01:40]} 23...
Qc7 {[%clk 0:00:18.5]} 24. Nc6 {[%clk 0:01:37]} 24... Rxf1+ {[%clk 0:00:17.3]}
25. Qxf1 {[%clk 0:01:37.9]} 25... g6 {[%clk 0:00:10.7]} 26. Qf2 {[%clk
0:01:32.2]} 26... Be3 {[%clk 0:00:10.2]} 27. Qf6 {[%clk 0:01:27.4]} 27... Qd7
{[%clk 0:00:03.3]} 28. Nxd4 {[%clk 0:01:03.5]} 28... Bxd4 {[%clk 0:00:03.2]} 29.
Qxd4 {[%clk 0:01:04.1]} 29... Qc7 {[%clk 0:00:03.6]} 30. Qc3 {[%clk 0:01:03.7]}
30... Qb6 {[%clk 0:00:03.5]} 31. d4 {[%clk 0:01:03.3]} 31... Qa6 {[%clk
0:00:02.3]} 32. a3 {[%clk 0:01:02.7]} 32... Qa4 {[%clk 0:00:02.7]} 33. e5 {[%clk
0:00:55.2]} 33... Qd1+ {[%clk 0:00:01.7]} 34. Kh2 {[%clk 0:00:55.7]} 34... dxe5
{[%clk 0:00:02]} 35. dxe5 {[%clk 0:00:55.7]} 35... Qxd5 {[%clk 0:00:02]} 36. Qe3
{[%clk 0:00:47.7]} 36... a5 {[%clk 0:00:01.2]} 37. Kg3 {[%clk 0:00:45.2]} 37...
b4 {[%clk 0:00:01.5]} 38. axb4 {[%clk 0:00:43.7]} 38... axb4 {[%clk 0:00:02.4]}
39. b3 {[%clk 0:00:41.4]} 39... Qb5 {[%clk 0:00:02]} 40. Kf4 {[%clk 0:00:36.5]}
40... h5 {[%clk 0:00:02]} 41. Kg5 {[%clk 0:00:32.3]} 41... Qd5 {[%clk
0:00:01.3]} 42. g4 {[%clk 0:00:29.8]} 42... Qd8+ {[%clk 0:00:01.3]} 43. Kf4
{[%clk 0:00:28.4]} 43... g5+ {[%clk 0:00:01.5]} 44. Kg3 {[%clk 0:00:24.1]} 44...
h4+ {[%clk 0:00:01.5]} 45. Kf3 {[%clk 0:00:22]} 45... Qd5+ {[%clk 0:00:02]} 46.
Kf2 {[%clk 0:00:19.6]} 46... Kg7 {[%clk 0:00:01.7]} 47. Ke2 {[%clk 0:00:17.9]}
47... Qg2+ {[%clk 0:00:01.4]} 48. Kd3 {[%clk 0:00:16.9]} 48... Qf1+ {[%clk
0:00:01.5]} 49. Kd4 {[%clk 0:00:16.7]} 49... Qd1+ {[%clk 0:00:01.5]} 50. Qd3
{[%clk 0:00:11.1]} 1-0

[Event "Early-Titled-Tuesday-Blitz-February-27-2024"]
[Site "Chess.com"]
[Date "2024.02.27"]
[Round "5"]
[White "Rosh1610"]
[Black "CarlosjPineror"]
[Result "0-1"]
[WhiteElo "2415"]
[BlackElo "2569"]
[TimeControl "180+1"]
[EndTime "8:54:42 PST"]
[Termination "CarlosjPineror won by resignation"]

1. e4 {[%clk 0:02:54.7]} 1... c5 {[%clk 0:03:00.1]} 2. Nc3 {[%clk 0:02:54.2]}
2... e6 {[%clk 0:03:00.5]} 3. Nge2 {[%clk 0:02:52.7]} 3... a6 {[%clk 0:02:59.6]}
4. g3 {[%clk 0:02:51.1]} 4... Nc6 {[%clk 0:02:58.1]} 5. Bg2 {[%clk 0:02:51.5]}
5... Nf6 {[%clk 0:02:58.2]} 6. O-O {[%clk 0:02:52.1]} 6... Be7 {[%clk
0:02:57.3]} 7. d4 {[%clk 0:02:52.6]} 7... cxd4 {[%clk 0:02:56.9]} 8. Nxd4 {[%clk
0:02:53.5]} 8... Qc7 {[%clk 0:02:57.5]} 9. Be3 {[%clk 0:02:53.5]} 9... d6 {[%clk
0:02:57.3]} 10. f4 {[%clk 0:02:52.7]} 10... Bd7 {[%clk 0:02:57]} 11. h3 {[%clk
0:02:52.6]} 11... O-O {[%clk 0:02:56.8]} 12. g4 {[%clk 0:02:52.6]} 12... Nxd4
{[%clk 0:02:57]} 13. Bxd4 {[%clk 0:02:52.4]} 13... Bc6 {[%clk 0:02:57.9]} 14. g5
{[%clk 0:02:47.1]} 14... Nd7 {[%clk 0:02:57.2]} 15. Re1 {[%clk 0:02:39]} 15...
e5 {[%clk 0:02:55.3]} 16. Be3 {[%clk 0:02:37.9]} 16... exf4 {[%clk 0:02:55]} 17.
Bxf4 {[%clk 0:02:38.8]} 17... Ne5 {[%clk 0:02:55.7]} 18. Kh1 {[%clk 0:02:34.7]}
18... Rfe8 {[%clk 0:02:51.3]} 19. Nd5 {[%clk 0:02:22.7]} 19... Bxd5 {[%clk
0:02:50.9]} 20. exd5 {[%clk 0:02:23.6]} 20... Ng6 {[%clk 0:02:46]} 21. Be3
{[%clk 0:02:22.5]} 21... Qd8 {[%clk 0:02:35.1]} 22. Qg4 {[%clk 0:02:17.3]} 22...
f6 {[%clk 0:02:32]} 23. h4 {[%clk 0:02:05.7]} 23... Ne5 {[%clk 0:02:24.4]} 24.
Qg3 {[%clk 0:01:59.2]} 24... Rc8 {[%clk 0:01:54.2]} 25. Be4 {[%clk 0:01:53.1]}
25... g6 {[%clk 0:01:50.3]} 26. c3 {[%clk 0:01:42.1]} 26... f5 {[%clk
0:01:50.4]} 27. Bc2 {[%clk 0:01:40.1]} 27... Bf8 {[%clk 0:01:50.7]} 28. Bd4
{[%clk 0:01:39.3]} 28... Bg7 {[%clk 0:01:50.7]} 29. h5 {[%clk 0:01:36.4]} 29...
Qd7 {[%clk 0:01:42.5]} 30. hxg6 {[%clk 0:01:28.4]} 30... hxg6 {[%clk 0:01:42.5]}
31. Kg2 {[%clk 0:01:26.7]} 31... Re7 {[%clk 0:01:32.4]} 32. Rh1 {[%clk
0:01:22.4]} 32... Ng4 {[%clk 0:01:32.2]} 33. Bxg7 {[%clk 0:00:58.9]} 33... Re2+
{[%clk 0:01:05.7]} 34. Kf1 {[%clk 0:00:56.5]} 34... Rf2+ {[%clk 0:01:05.6]} 35.
Qxf2 {[%clk 0:00:45.8]} 35... Nxf2 {[%clk 0:01:06.5]} 36. Kxf2 {[%clk
0:00:44.7]} 36... Kxg7 {[%clk 0:01:04.8]} 37. Rh6 {[%clk 0:00:45.3]} 37... Qe7
{[%clk 0:00:54.9]} 38. Rah1 {[%clk 0:00:17.1]} 38... Qxg5 {[%clk 0:00:54.3]} 39.
Rh7+ {[%clk 0:00:17]} 39... Kf6 {[%clk 0:00:54.8]} 40. Ke2 {[%clk 0:00:15]}
40... Re8+ {[%clk 0:00:44.3]} 41. Kd1 {[%clk 0:00:14.9]} 41... Re5 {[%clk
0:00:34.6]} 42. Bb3 {[%clk 0:00:12.4]} 42... Qg2 {[%clk 0:00:26.2]} 43. R7h2
{[%clk 0:00:05.8]} 43... Qf3+ {[%clk 0:00:21.4]} 44. Kc1 {[%clk 0:00:05.5]}
44... Re2 {[%clk 0:00:22.1]} 45. Rxe2 {[%clk 0:00:05.3]} 45... Qxe2 {[%clk
0:00:20.5]} 46. Rh7 {[%clk 0:00:05.3]} 46... f4 {[%clk 0:00:19]} 47. Rxb7 {[%clk
0:00:04.5]} 47... f3 {[%clk 0:00:18.9]} 0-1

[Event "Early-Titled-Tuesday-Blitz-February-27-2024"]
[Site "Chess.com"]
[Date "2024.02.27"]
[Round "5"]
[White "Flawless_Fighter"]
[Black "arenal72"]
[Result "0-1"]
[WhiteElo "2724"]
[BlackElo "2597"]
[TimeControl "180+1"]
[EndTime "8:54:43 PST"]
[Termination "arenal72 won by resignation"]

1. e4 {[%clk 0:02:44.5]} 1... Nc6 {[%clk 0:02:57]} 2. Nf3 {[%clk 0:02:43.8]}
2... d6 {[%clk 0:02:54.8]} 3. Nc3 {[%clk 0:02:42.5]} 3... g6 {[%clk 0:02:52.1]}
4. d4 {[%clk 0:02:42.6]} 4... Nf6 {[%clk 0:02:51.1]} 5. Be3 {[%clk 0:02:42.9]}
5... Bg7 {[%clk 0:02:48.4]} 6. Qd2 {[%clk 0:02:42.3]} 6... a6 {[%clk 0:02:48.7]}
7. O-O-O {[%clk 0:02:42.3]} 7... b5 {[%clk 0:02:48.6]} 8. Bd3 {[%clk 0:02:38.1]}
8... Bb7 {[%clk 0:02:35.5]} 9. h3 {[%clk 0:02:33.8]} 9... Nb4 {[%clk 0:02:29.3]}
10. Kb1 {[%clk 0:02:23.2]} 10... Nxd3 {[%clk 0:02:18.9]} 11. cxd3 {[%clk
0:02:23.3]} 11... Qd7 {[%clk 0:02:09.8]} 12. g4 {[%clk 0:02:18]} 12... b4 {[%clk
0:02:04.4]} 13. Ne2 {[%clk 0:02:17.7]} 13... Nxe4 {[%clk 0:01:55.1]} 14. dxe4
{[%clk 0:02:04.4]} 14... Bxe4+ {[%clk 0:01:53.6]} 15. Ka1 {[%clk 0:02:05.1]}
15... Bxf3 {[%clk 0:01:53.3]} 16. Rhe1 {[%clk 0:02:05.7]} 16... O-O {[%clk
0:01:42.3]} 17. Rc1 {[%clk 0:02:04.8]} 17... b3 {[%clk 0:01:40.1]} 18. a3 {[%clk
0:02:04.1]} 18... Bxe2 {[%clk 0:01:23.7]} 19. Rxe2 {[%clk 0:02:04.1]} 19... c5
{[%clk 0:01:18.2]} 20. dxc5 {[%clk 0:01:44.7]} 20... Qa4 {[%clk 0:01:17.4]} 21.
Qb4 {[%clk 0:01:45.3]} 21... Qxb4 {[%clk 0:01:14.2]} 22. axb4 {[%clk 0:01:46.2]}
22... Rab8 {[%clk 0:01:06.8]} 23. Bd2 {[%clk 0:01:37.9]} 23... dxc5 {[%clk
0:01:05.7]} 24. bxc5 {[%clk 0:01:35]} 24... e6 {[%clk 0:01:05.9]} 25. c6 {[%clk
0:01:29.4]} 25... Rfc8 {[%clk 0:01:05.3]} 26. Re4 {[%clk 0:01:27.9]} 26... Rb6
{[%clk 0:01:00.9]} 27. Rec4 {[%clk 0:01:26.9]} 27... Be5 {[%clk 0:00:57.9]} 28.
Kb1 {[%clk 0:01:11.3]} 28... Rb5 {[%clk 0:00:53.1]} 29. c7 {[%clk 0:00:57.7]}
29... Rd5 {[%clk 0:00:44.4]} 30. Be3 {[%clk 0:00:53]} 30... Rd7 {[%clk
0:00:38.7]} 31. Rc5 {[%clk 0:00:44.1]} 31... Bd6 {[%clk 0:00:30.7]} 32. Rc6
{[%clk 0:00:44.2]} 32... Rcxc7 {[%clk 0:00:30]} 33. Rxa6 {[%clk 0:00:38.6]}
33... Rxc1+ {[%clk 0:00:29.4]} 34. Kxc1 {[%clk 0:00:39.5]} 34... Be5 {[%clk
0:00:22.8]} 35. Rb6 {[%clk 0:00:34.8]} 35... Rd3 {[%clk 0:00:18.5]} 36. Bh6
{[%clk 0:00:31.3]} 36... Rxh3 {[%clk 0:00:18.1]} 37. g5 {[%clk 0:00:27.2]} 37...
f5 {[%clk 0:00:16.4]} 38. Rxe6 {[%clk 0:00:14.6]} 38... Rh1+ {[%clk 0:00:16.3]}
39. Kd2 {[%clk 0:00:14.6]} 39... Bxb2 {[%clk 0:00:16.9]} 40. Rb6 {[%clk
0:00:11.6]} 40... Bc1+ {[%clk 0:00:13.6]} 41. Kd3 {[%clk 0:00:09.6]} 41... b2
{[%clk 0:00:12.6]} 42. Kc2 {[%clk 0:00:09.1]} 42... Rf1 {[%clk 0:00:09.9]} 43.
Rf6 {[%clk 0:00:08.4]} 43... b1=Q+ {[%clk 0:00:07.9]} 44. Kc3 {[%clk 0:00:02.8]}
44... Bb2+ {[%clk 0:00:06.3]} 45. Kc4 {[%clk 0:00:03.1]} 45... Bxf6 {[%clk
0:00:07.2]} 0-1

[Event "Early-Titled-Tuesday-Blitz-February-27-2024"]
[Site "Chess.com"]
[Date "2024.02.27"]
[Round "5"]
[White "Cambek64"]
[Black "Chernov_Alexander_A"]
[Result "0-1"]
[WhiteElo "2499"]
[BlackElo "2367"]
[TimeControl "180+1"]
[EndTime "8:54:43 PST"]
[Termination "Chernov_Alexander_A won by checkmate"]

1. e4 {[%clk 0:02:37.4]} 1... d6 {[%clk 0:02:58.2]} 2. d4 {[%clk 0:02:34.7]}
2... Nf6 {[%clk 0:02:57.9]} 3. f3 {[%clk 0:02:34.9]} 3... Nbd7 {[%clk
0:02:56.4]} 4. c4 {[%clk 0:02:34.4]} 4... c6 {[%clk 0:02:50.8]} 5. d5 {[%clk
0:02:34]} 5... g6 {[%clk 0:02:44.8]} 6. Be3 {[%clk 0:02:32.8]} 6... Bg7 {[%clk
0:02:44.3]} 7. Nc3 {[%clk 0:02:32.5]} 7... O-O {[%clk 0:02:43.9]} 8. Qd2 {[%clk
0:02:33]} 8... a6 {[%clk 0:02:28.9]} 9. Nh3 {[%clk 0:02:30.4]} 9... cxd5 {[%clk
0:02:25.1]} 10. cxd5 {[%clk 0:02:29.8]} 10... b5 {[%clk 0:02:23.6]} 11. Nf2
{[%clk 0:02:28.8]} 11... Nb6 {[%clk 0:02:21.3]} 12. Rc1 {[%clk 0:02:20.8]} 12...
Bd7 {[%clk 0:02:20]} 13. b3 {[%clk 0:02:20]} 13... Qb8 {[%clk 0:02:09.3]} 14.
Bd3 {[%clk 0:02:19.8]} 14... Rc8 {[%clk 0:02:07.5]} 15. O-O {[%clk 0:02:19.4]}
15... b4 {[%clk 0:01:57.3]} 16. Ne2 {[%clk 0:02:18.2]} 16... a5 {[%clk 0:01:57]}
17. Nd4 {[%clk 0:02:18.3]} 17... Qb7 {[%clk 0:01:54.5]} 18. Rxc8+ {[%clk
0:02:13.7]} 18... Rxc8 {[%clk 0:01:53.5]} 19. Rc1 {[%clk 0:02:14.4]} 19... Rxc1+
{[%clk 0:01:43]} 20. Qxc1 {[%clk 0:02:14.8]} 20... Ne8 {[%clk 0:01:29.4]} 21.
Nc6 {[%clk 0:02:10.2]} 21... Kf8 {[%clk 0:01:21.6]} 22. Bb5 {[%clk 0:01:57.7]}
22... Nxd5 {[%clk 0:01:11.3]} 23. exd5 {[%clk 0:01:46]} 23... Qxb5 {[%clk
0:01:10.8]} 24. Qc4 {[%clk 0:01:18.4]} 24... Bxc6 {[%clk 0:01:07.4]} 25. Qxc6
{[%clk 0:01:13.6]} 25... Qe2 {[%clk 0:01:02.7]} 26. Qc1 {[%clk 0:00:56.3]} 26...
Qxa2 {[%clk 0:00:44.5]} 27. Ne4 {[%clk 0:00:56.8]} 27... a4 {[%clk 0:00:35.3]}
28. bxa4 {[%clk 0:00:47.4]} 28... b3 {[%clk 0:00:35.3]} 29. Nc3 {[%clk
0:00:42.1]} 29... Bxc3 {[%clk 0:00:16.9]} 30. Qxc3 {[%clk 0:00:42]} 30... f6
{[%clk 0:00:16.8]} 31. Bh6+ {[%clk 0:00:33.8]} 31... Kf7 {[%clk 0:00:13.6]} 32.
Qc8 {[%clk 0:00:21.6]} 32... Qe2 {[%clk 0:00:10.5]} 33. h3 {[%clk 0:00:17.5]}
33... b2 {[%clk 0:00:09.6]} 34. Qb7 {[%clk 0:00:12.5]} 34... Qd1+ {[%clk
0:00:08.2]} 35. Kh2 {[%clk 0:00:12.6]} 35... b1=Q {[%clk 0:00:08.2]} 36. Qd7
{[%clk 0:00:12.6]} 36... Qh1+ {[%clk 0:00:05.3]} 37. Kg3 {[%clk 0:00:12.1]}
37... Qbe1+ {[%clk 0:00:05.8]} 38. Kg4 {[%clk 0:00:11.8]} 38... Qxg2+ {[%clk
0:00:05.8]} 39. Kf4 {[%clk 0:00:10.9]} 39... Qed2+ {[%clk 0:00:04.8]} 40. Ke4
{[%clk 0:00:09.8]} 40... Qc2+ {[%clk 0:00:04.4]} 41. Ke3 {[%clk 0:00:08.7]}
41... Qc3+ {[%clk 0:00:03.6]} 42. Kf4 {[%clk 0:00:08]} 42... Qgxf3# {[%clk
0:00:03.8]} 0-1

[Event "Early-Titled-Tuesday-Blitz-February-27-2024"]
[Site "Chess.com"]
[Date "2024.02.27"]
[Round "5"]
[White "wonderfultime"]
[Black "rasmussvane"]
[Result "1-0"]
[WhiteElo "3093"]
[BlackElo "2944"]
[TimeControl "180+1"]
[EndTime "8:54:44 PST"]
[Termination "wonderfultime won by resignation"]

1. d4 {[%clk 0:02:59.5]} 1... Nf6 {[%clk 0:02:57.4]} 2. Nf3 {[%clk 0:02:59.5]}
2... d5 {[%clk 0:02:56.7]} 3. Bf4 {[%clk 0:02:59.4]} 3... c5 {[%clk 0:02:47.8]}
4. c3 {[%clk 0:02:59.6]} 4... e6 {[%clk 0:02:46.3]} 5. e3 {[%clk 0:02:59.8]}
5... Bd6 {[%clk 0:02:39.3]} 6. Nbd2 {[%clk 0:02:59.6]} 6... O-O {[%clk
0:02:36.8]} 7. Bd3 {[%clk 0:02:59.9]} 7... Bxf4 {[%clk 0:02:32.6]} 8. exf4
{[%clk 0:03:00.2]} 8... Qb6 {[%clk 0:02:23.9]} 9. Rb1 {[%clk 0:02:53.8]} 9...
cxd4 {[%clk 0:02:23.9]} 10. Nxd4 {[%clk 0:02:52.8]} 10... Qd6 {[%clk 0:02:24.2]}
11. Qf3 {[%clk 0:01:59.2]} 11... Nc6 {[%clk 0:02:12.7]} 12. O-O {[%clk
0:01:57.5]} 12... e5 {[%clk 0:01:51.9]} 13. fxe5 {[%clk 0:01:46.5]} 13... Nxe5
{[%clk 0:01:49.8]} 14. Qg3 {[%clk 0:01:37.8]} 14... Nh5 {[%clk 0:01:43.4]} 15.
Qh4 {[%clk 0:01:38]} 15... Nxd3 {[%clk 0:01:37.5]} 16. Qxh5 {[%clk 0:01:37.8]}
16... Nf4 {[%clk 0:01:36.4]} 17. Qh4 {[%clk 0:01:15.4]} 17... h6 {[%clk
0:01:20.2]} 18. Rfe1 {[%clk 0:01:11.5]} 18... Bd7 {[%clk 0:01:09.3]} 19. Re3
{[%clk 0:00:43.1]} 19... Rfe8 {[%clk 0:01:04.7]} 20. Rbe1 {[%clk 0:00:43.1]}
20... Rxe3 {[%clk 0:00:59.4]} 21. Rxe3 {[%clk 0:00:44]} 21... Ng6 {[%clk
0:00:58.1]} 22. Qg3 {[%clk 0:00:43.1]} 22... Qxg3 {[%clk 0:00:58.3]} 23. hxg3
{[%clk 0:00:43.4]} 23... Re8 {[%clk 0:00:57.4]} 24. Nf1 {[%clk 0:00:34.1]} 24...
Kf8 {[%clk 0:00:56.6]} 25. f3 {[%clk 0:00:33.2]} 25... Ne5 {[%clk 0:00:51.8]}
26. b3 {[%clk 0:00:32.5]} 26... Nc6 {[%clk 0:00:50.8]} 27. Kf2 {[%clk 0:00:27]}
27... Rc8 {[%clk 0:00:42.9]} 28. Ne2 {[%clk 0:00:22.8]} 28... g5 {[%clk
0:00:36.4]} 29. g4 {[%clk 0:00:23.1]} 29... Be6 {[%clk 0:00:35.2]} 30. Nfg3
{[%clk 0:00:21.1]} 30... Kg7 {[%clk 0:00:34.7]} 31. Nf5+ {[%clk 0:00:20.3]}
31... Bxf5 {[%clk 0:00:29.6]} 32. gxf5 {[%clk 0:00:21.2]} 32... Kf6 {[%clk
0:00:30.3]} 33. g4 {[%clk 0:00:21.8]} 33... h5 {[%clk 0:00:27.9]} 34. Ng3 {[%clk
0:00:18.8]} 34... hxg4 {[%clk 0:00:27.9]} 35. fxg4 {[%clk 0:00:17.2]} 35... Kg7
{[%clk 0:00:27.9]} 36. Nh5+ {[%clk 0:00:16.9]} 36... Kf8 {[%clk 0:00:28.4]} 37.
Nf6 {[%clk 0:00:13.9]} 37... d4 {[%clk 0:00:23.9]} 38. cxd4 {[%clk 0:00:14.4]}
38... Nxd4 {[%clk 0:00:24.8]} 39. Nh7+ {[%clk 0:00:15.1]} 39... Kg7 {[%clk
0:00:25.4]} 40. Nxg5 {[%clk 0:00:16]} 40... Rc2+ {[%clk 0:00:23.4]} 41. Kg3
{[%clk 0:00:16.6]} 41... Rxa2 {[%clk 0:00:20.5]} 42. Rd3 {[%clk 0:00:15.5]}
42... Nc6 {[%clk 0:00:15.8]} 43. Rd7 {[%clk 0:00:15.5]} 43... Ne5 {[%clk
0:00:15.2]} 44. Rxb7 {[%clk 0:00:16]} 44... Re2 {[%clk 0:00:11.6]} 45. Ne6+
{[%clk 0:00:13.1]} 45... Kf6 {[%clk 0:00:10.3]} 46. g5+ {[%clk 0:00:07.5]} 46...
Kxf5 {[%clk 0:00:03.7]} 47. Nd4+ {[%clk 0:00:08.4]} 47... Kxg5 {[%clk 0:00:04]}
48. Nxe2 {[%clk 0:00:08.8]} 1-0